bitfinex/quotes_ETHUSD_20220220
["timestamp","ask_amount","ask_price","bid_price","bid_amount"]
[1645356935670,0.02436951,2625.3,2624.9,2.63372432]
[1645356935868,0.01201461,2625.3,2624.9,2.68569727]
[1645356936107,1.7237697,2625.5,2624.9,2.68569727]
[1645356936307,1.7361246,2625.5,2625.0,1.0]
[1645356936507,1.72573612,2625.3,2625.0,1.3]
[1645356937107,1.72573612,2625.3,2625.0,0.3]
[1645356937307,1.7237697,2625.3,2624.9,1.68105432]
[1645356937709,1.72617361,2625.3,2624.9,1.68105432]
[1645356938315,1.72617361,2625.3,2624.9,2.68105432]
[1645356938510,1.7237697,2625.3,2624.9,2.68105432]
[1645356938712,1.7237697,2625.1,2624.9,1.68105432]
[1645356938914,1.72628018,2625.3,2624.9,2.68105432]
[1645356939420,0.00251048,2625.3,2625.1,0.95265]
[1645356939617,0.00251048,2625.3,2625.2,3.5]
[1645356939864,1.7237697,2626.0,2625.2,3.8]
[1645356940063,0.00251056,2625.3,2625.2,4.8]
[1645356940663,0.00251056,2625.3,2625.2,0.3]
[1645356941068,0.0123549,2625.6,2625.1,2.50517]
[1645356941267,1.7237697,2625.8,2625.3,0.90337228]
[1645356941268,0.00251055,2625.4,2625.3,0.90337228]
[1645356941566,0.00251055,2625.4,2625.3,1.20337228]
[1645356941768,0.00251055,2625.4,2625.3,1.50337228]
[1645356942167,1.7237697,2625.7,2625.3,1.50337228]
[1645356942565,0.0024046,2625.5,2625.3,1.50337228]
[1645356943366,1.7361246,2625.7,2625.3,1.50337228]
[1645356943624,0.0024046,2625.5,2625.3,1.50337228]
[1645356943826,0.0024046,2625.5,2625.4,4.45258]
[1645356944017,0.0123549,2625.7,2625.5,48.65280997]
[1645356944223,0.00961694,2625.9,2625.6,18.037]
[1645356944416,0.00961694,2625.9,2625.6,19.94175]
[1645356944621,0.0123549,2626.6,2625.6,19.94175]
[1645356944820,0.0123549,2626.6,2626.2,0.98874324]
[1645356945017,0.0123549,2626.7,2626.2,0.98874324]
[1645356945215,2.69091977,2626.9,2626.2,1.58874324]
[1645356945216,0.0123549,2626.9,2626.2,1.58874324]
[1645356945420,1.7237697,2626.8,2626.2,1.58874324]
[1645356945715,0.0123549,2626.9,2626.2,1.58874324]
[1645356945916,1.7237697,2626.4,2626.2,1.58874324]
[1645356946518,0.00241551,2626.6,2626.3,3.5]
[1645356946724,0.00241551,2626.6,2626.3,15.15]
[1645356946919,0.00241551,2626.6,2626.3,15.45]
[1645356947120,1.7361246,2626.9,2626.3,15.45]
[1645356947365,0.00241552,2626.6,2626.3,0.3]
[1645356947560,0.00241552,2626.6,2626.2,0.6]
[1645356947776,0.00241552,2626.6,2626.0,2.50442]
[1645356947964,1.7237697,2626.3,2626.0,2.50442]
[1645356948363,0.97950497,2627.0,2626.0,0.6]
[1645356948563,1.7237697,2626.1,2626.0,0.6]
[1645356948963,1.7237697,2626.1,2626.0,0.3]
[1645356950063,1.7237697,2626.1,2625.7,4.1]
[1645356950263,1.7237697,2626.1,2625.7,3.8]
[1645356950464,1.7237697,2626.1,2625.7,0.3]
[1645356950863,1.7237697,2626.1,2625.8,1.17411913]
[1645356951114,1.7361246,2626.1,2625.8,1.77411913]
[1645356951312,1.7237697,2626.1,2625.8,1.77411913]
[1645356953411,1.72641332,2626.1,2625.8,1.77411913]
[1645356954209,1.7237697,2626.1,2625.8,1.77411913]
[1645356954410,1.72641332,2626.1,2625.8,1.77411913]
[1645356955456,1.7237697,2626.6,2625.9,3.5]
[1645356955657,4.362e-05,2626.1,2626.0,50.937]
[1645356955859,1.7237697,2627.2,2626.2,13.937]
[1645356956259,1.7237697,2627.2,2626.8,2.287]
[1645356956464,1.7237697,2627.4,2627.1,0.84411278]
[1645356956659,1.7237697,2627.2,2626.7,0.95197]
[1645356957661,1.7237697,2627.0,2626.6,0.6]
[1645356957866,1.7237697,2626.7,2626.6,0.3]
[1645356958060,1.7237697,2626.7,2626.3,0.6]
[1645356958260,1.7237697,2626.7,2626.2,0.60151352]
[1645356958516,1.7237697,2626.7,2626.2,0.30151352]
[1645356958705,1.7237697,2626.7,2626.2,0.00151352]
[1645356958907,0.85953338,2626.9,2626.2,0.00151352]
[1645356958908,1.7237697,2626.4,2626.2,0.00151352]
[1645356959112,1.7237697,2626.4,2626.1,0.3]
[1645356959308,1.7237697,2626.4,2626.2,0.00151352]
[1645356959805,1.7237697,2626.3,2626.2,0.00151352]
[1645356960205,1.7237697,2626.3,2626.0,0.92441055]
[1645356960608,0.00264539,2626.6,2626.1,0.00151358]
[1645356961008,1.7237697,2626.3,2626.1,0.00151358]
[1645356961208,0.00264539,2626.6,2626.1,0.00151358]
[1645356961410,1.24177893,2627.3,2626.2,0.95227]
[1645356961411,1.2312,2627.3,2626.2,0.95227]
[1645356961611,1.7237697,2626.9,2626.2,0.95227]
[1645356961808,0.00264535,2626.6,2626.2,1.55227]
[1645356962262,0.00264535,2626.6,2626.5,1.40656819]
[1645356962460,0.00264535,2626.6,2626.5,1.70656819]
[1645356962665,1.7237697,2626.9,2626.5,1.70656819]
[1645356962865,1.7237697,2626.9,2626.6,0.95213]
[1645356963061,0.00264559,2626.7,2626.6,0.95213]
[1645356963862,1.7237697,2626.9,2626.6,0.95213]
[1645356964267,0.00264558,2626.8,2626.6,0.95213]
[1645356964965,1.7237697,2626.9,2626.6,0.95213]
[1645356965363,0.00264557,2626.8,2626.6,0.95213]
[1645356966214,1.7237697,2626.8,2626.5,2.65868819]
[1645356966617,0.00264557,2626.8,2626.5,1.70656819]
[1645356966815,1.72641527,2626.8,2626.5,1.70656819]
[1645356967416,1.7237697,2626.8,2626.5,1.70656819]
[1645356967821,1.72641528,2626.8,2626.5,1.70656819]
[1645356968616,1.7237697,2626.8,2626.5,1.70656819]
[1645356969017,1.72641528,2626.8,2626.5,1.70656819]
[1645356969869,1.7237697,2626.8,2626.5,1.70656819]
[1645356970072,1.72641528,2626.8,2626.5,1.70656819]
[1645356970669,0.00264558,2626.8,2626.5,1.70656819]
[1645356971068,1.7237697,2626.9,2626.5,1.70656819]
[1645356971270,0.00264558,2626.8,2626.5,1.70656819]
[1645356972279,1.7237697,2626.9,2626.5,1.70656819]
[1645356972469,0.00264558,2626.8,2626.5,1.70656819]
[1645356973519,1.7237697,2626.9,2626.5,1.70656819]
[1645356973914,1.7237697,2627.1,2626.7,11.65]
[1645356974120,1.2456,2627.6,2626.6,5.787]
[1645356974121,2.9693697,2627.6,2626.8,15.15]
[1645356974318,1.7237697,2627.6,2626.9,2.20385]
[1645356974514,1.7237697,2627.6,2627.0,3.5]
[1645356975113,1.7237697,2627.6,2627.3,1.06276598]
[1645356975314,1.7237697,2627.6,2627.3,1.66276598]
[1645356976820,1.7237697,2627.8,2627.4,0.95179]
[1645356977119,1.7237697,2627.8,2627.5,3.8]
[1645356977360,0.00264484,2627.6,2627.5,0.6]
[1645356977760,0.00264484,2627.6,2627.5,0.3]
[1645356977962,0.00264484,2627.6,2627.5,3.8]
[1645356978267,1.7237697,2627.8,2627.5,15.45]
[1645356978460,1.7237697,2627.8,2627.5,15.44904232]
[1645356978762,0.00264482,2627.7,2627.5,15.44904232]
[1645356978962,0.00264482,2627.7,2627.5,11.94904232]
[1645356979560,1.7237697,2627.8,2627.5,11.94904232]
[1645356979761,0.00264481,2627.7,2627.5,11.94904232]
[1645356980162,0.00264481,2627.7,2627.5,15.44904232]
[1645356980366,0.00264481,2627.7,2627.5,11.94904232]
[1645356980765,1.7237697,2627.8,2627.5,11.94904232]
[1645356981021,1.7237697,2627.8,2627.7,0.98683194]
[1645356981212,1.7237697,2627.8,2627.7,1.58683194]
[1645356982215,1.7237697,2627.8,2627.7,1.28683194]
[1645356983217,1.7237697,2627.8,2627.7,0.3]
[1645356983617,1.7237697,2627.8,2627.4,0.1902]
[1645356983618,1.7237697,2627.8,2627.4,0.7902]
[1645356983817,0.00264479,2627.9,2627.4,0.1902]
[1645356983818,1.7237697,2627.7,2627.4,0.1902]
[1645356984420,1.7237697,2627.7,2627.4,11.8402]
[1645356984618,1.72641452,2627.7,2627.6,1.13070358]
[1645356984859,1.72641452,2627.7,2627.4,1.1902]
[1645356985459,1.7237697,2627.7,2627.4,1.1902]
[1645356985861,1.72641452,2627.7,2627.5,1.08195982]
[1645356986265,0.00264482,2627.7,2627.5,1.68195982]
[1645356986762,1.7237697,2627.8,2627.5,1.68195982]
[1645356986963,0.00264481,2627.7,2627.5,1.68195982]
[1645356987862,1.7237697,2627.8,2627.5,1.68195982]
[1645356988266,0.00264481,2627.7,2627.5,1.68195982]
[1645356989112,1.7237697,2627.8,2627.5,1.68195982]
[1645356989313,0.00264481,2627.7,2627.5,1.68195982]
[1645356990213,1.7237697,2627.9,2627.5,1.68195982]
[1645356990613,0.00264481,2627.7,2627.5,5.18195982]
[1645356990912,0.00264481,2627.7,2627.5,6.13375982]
[1645356991113,0.00264481,2627.7,2627.5,2.63375982]
[1645356991516,1.7237697,2627.9,2627.5,2.63375982]
[1645356991813,0.00264481,2627.7,2627.5,2.63375982]
[1645356992759,1.7237697,2627.9,2627.5,2.63375982]
[1645356992959,0.00264481,2627.7,2627.5,2.63375982]
[1645356993159,0.00264481,2627.7,2627.6,1.0]
[1645356993360,0.00264481,2627.7,2627.5,2.68195982]
[1645356993964,1.7237697,2627.8,2627.5,6.18195982]
[1645356994167,0.00264481,2627.7,2627.5,2.68195982]
[1645356994369,0.00264481,2627.7,2627.5,1.6]
[1645356994565,1.7237697,2627.6,2627.5,0.3]
[1645356994762,1.7237697,2627.6,2627.4,0.3]
[1645356994963,1.7237697,2627.6,2627.2,0.1902]
[1645356995164,1.7237697,2627.6,2627.2,3.6902]
[1645356995361,1.72641453,2627.6,2627.3,1.3]
[1645356995761,1.72641453,2627.6,2627.3,1.6]
[1645356996023,1.72641453,2627.6,2627.3,13.25]
[1645356996212,1.7237697,2627.6,2627.3,13.25]
[1645356996618,1.72641454,2627.6,2627.3,13.25]
[1645356996813,1.72641454,2627.6,2627.5,0.97890715]
[1645356997215,1.72641454,2627.6,2627.5,1.57890715]
[1645356997416,1.7237697,2627.6,2627.5,1.57890715]
[1645356999319,1.7237697,2627.6,2627.5,0.3]
[1645356999518,1.7237697,2627.6,2627.3,0.6]
[1645356999757,1.7237697,2627.6,2627.2,1.7902]
[1645356999957,1.7237697,2627.6,2627.2,5.2902]
[1645357000158,1.72641394,2627.6,2627.2,5.2902]
[1645357000359,1.72641394,2627.6,2627.4,1.12934358]
[1645357000559,1.72641394,2627.6,2627.4,1.12846579]
[1645357000757,1.72641394,2627.6,2627.4,1.72846579]
[1645357001058,1.7237697,2627.8,2627.4,1.72846579]
[1645357001461,0.00264423,2627.6,2627.4,1.72846579]
[1645357001665,0.00264423,2627.6,2627.4,2.72846579]
[1645357002361,1.7237697,2627.8,2627.4,1.72846579]
[1645357002658,0.00264423,2627.6,2627.4,1.72846579]
[1645357002861,0.00264423,2627.6,2627.4,13.37846579]
[1645357003060,0.00264423,2627.6,2627.4,14.33027579]
[1645357003520,1.7237697,2627.8,2627.4,14.33027579]
[1645357003711,1.7237697,2628.0,2627.6,14.237]
[1645357003910,1.7237697,2628.0,2627.8,1.01782762]
[1645357003911,0.01057534,2628.0,2627.8,1.01782762]
[1645357004114,0.01057534,2628.0,2627.8,1.31782762]
[1645357004718,1.7237697,2627.9,2627.8,1.31782762]
[1645357006114,1.9452,2628.6,2627.8,16.76782762]
[1645357006115,0.00264417,2628.0,2627.8,16.76782762]
[1645357006316,0.00264417,2628.0,2627.9,3.5]
[1645357006514,0.00264417,2628.0,2627.9,15.15]
[1645357007112,1.7237697,2628.7,2627.9,15.15]
[1645357007361,0.01057502,2628.5,2628.3,0.98156156]
[1645357008363,1.7237697,2628.6,2628.3,0.98156156]
[1645357008564,0.00264407,2628.5,2628.3,0.98156156]
[1645357009365,0.00264407,2628.5,2628.3,1.28156156]
[1645357009571,1.7237697,2628.7,2628.3,1.28156156]
[1645357009770,0.01057471,2628.9,2628.5,14.5]
[1645357009971,0.01057471,2628.9,2628.5,26.15]
[1645357010173,0.01057471,2628.9,2628.6,0.3]
[1645357010369,0.01057471,2628.9,2628.7,0.95137]
[1645357010871,1.7237697,2629.0,2628.8,0.96495643]
[1645357011115,1.7237697,2629.0,2628.8,0.3]
[1645357011518,1.7237697,2629.0,2628.7,0.6]
[1645357011714,1.7237697,2629.0,2628.6,0.95133]
[1645357011715,1.7237697,2628.8,2628.6,1.55133]
[1645357011916,1.7237697,2628.8,2628.6,13.20133]
[1645357013415,1.72642484,2628.8,2628.6,13.20133]
[1645357014017,1.72642484,2628.8,2628.6,0.6]
[1645357014219,1.7237697,2628.8,2628.5,0.4902]
[1645357014523,0.00265514,2628.8,2628.5,0.4902]
[1645357014774,1.7237697,2628.6,2628.3,0.1902]
[1645357015063,1.7237697,2628.6,2628.3,0.4902]
[1645357015263,1.7237697,2628.6,2628.3,1.44173]
[1645357015463,1.7237697,2628.6,2628.3,1.14173]
[1645357015864,1.72642484,2628.6,2628.3,1.14173]
[1645357016270,1.72642484,2628.6,2628.5,1.06969828]
[1645357016672,1.7237697,2628.6,2628.3,12.79173]
[1645357016869,1.7237697,2628.6,2628.3,3.42873]
[1645357017068,1.7237697,2628.6,2628.3,16.98158]
[1645357017270,1.7237697,2628.6,2628.4,12.95]
[1645357017468,1.53557905,2628.7,2628.4,3.587]
[1645357017868,1.53557905,2628.7,2628.3,2.12800861]
[1645357017869,1.53292388,2628.7,2628.3,1.14173]
[1645357018071,1.53292388,2628.4,2628.3,0.1902]
[1645357018279,1.53292388,2628.4,2627.9,3.5]
[1645357018915,1.53292388,2628.0,2627.9,3.5]
[1645357019117,0.01223136,2628.2,2628.0,0.19246122]
[1645357019316,1.16895702,2628.3,2628.0,0.19246122]
[1645357019716,0.00265489,2628.6,2628.0,0.19246122]
[1645357020415,0.01061937,2628.7,2628.0,0.19246122]
[1645357020416,0.01223136,2629.0,2628.0,0.19246122]
[1645357020616,0.85387872,2628.5,2628.0,0.19246122]
[1645357031363,3.5,2628.4,2628.0,0.19246122]
[1645357031562,3.51223136,2628.4,2628.0,0.19246122]
[1645357031762,0.01223136,2628.4,2628.0,0.19246122]
[1645357032062,0.85387872,2628.5,2628.0,0.19246122]
[1645357032261,0.97191843,2628.1,2628.0,0.19246122]
[1645357033919,4.47191843,2628.1,2628.0,6.122e-05]
[1645357034122,5.0,2628.1,2627.1,5.11800616]
[1645357034323,3.51223136,2628.0,2627.1,3.5]
[1645357034523,8.51223136,2628.0,2627.1,3.5]
[1645357035014,9.21933136,2628.0,2627.1,3.5]
[1645357035414,0.98152391,2627.2,2627.1,3.5]
[1645357035618,0.98152391,2627.2,2626.7,0.19175696]
[1645357035816,1.1747,2627.9,2626.8,1.61818406]
[1645357035817,3.5,2627.8,2626.8,1.61818406]
[1645357036814,0.93597491,2627.5,2626.9,1.61818406]
[1645357037014,0.93597491,2627.5,2626.7,0.00155696]
[1645357037263,0.93597491,2627.5,2626.6,3.10838778]
[1645357037465,0.93597491,2627.5,2626.7,1.61974474]
[1645357038063,3.5,2627.8,2626.8,1.18738203]
[1645357038270,3.0327,2627.9,2626.9,1.61818778]
[1645357038671,3.0327,2627.9,2627.0,11.65]
[1645357038870,3.0327,2627.9,2627.1,2.61818778]
[1645357039065,3.0327,2627.9,2627.2,1.61818778]
[1645357039265,0.71933136,2628.0,2627.5,0.83992625]
[1645357039466,0.7071,2628.0,2627.5,0.83992625]
[1645357039870,0.7071,2628.0,2627.5,2.09171625]
[1645357040068,0.7071,2628.0,2627.6,1.61781308]
[1645357042120,0.7071,2628.0,2627.7,11.65]
[1645357042322,0.02285098,2628.3,2628.0,0.79077179]
[1645357042518,0.01061962,2628.3,2628.1,0.95156]
[1645357043217,0.83812272,2628.9,2628.1,2.07587509]
[1645357043427,0.00265493,2628.6,2628.1,2.07587509]
[1645357043618,0.00265493,2628.6,2628.1,3.02741509]
[1645357044421,0.01223136,2629.1,2628.1,3.02741509]
[1645357044626,0.00265505,2628.6,2628.5,0.89396994]
[1645357045682,0.01223136,2629.1,2628.2,0.3]
[1645357045883,0.00265517,2628.7,2628.2,0.3]
[1645357046684,0.00265517,2628.7,2628.1,0.1902]
[1645357046685,0.00265517,2628.7,2628.3,1.13675763]
[1645357046880,0.01223136,2629.1,2628.3,1.13675763]
[1645357047083,0.00265514,2628.6,2628.1,0.1902]
[1645357047281,0.00265514,2628.6,2628.2,1.61741827]
[1645357047680,0.00265514,2628.6,2628.2,1.91741827]
[1645357047880,0.00265514,2628.6,2628.2,0.3]
[1645357048182,0.96980517,2628.6,2628.1,0.1902]
[1645357048383,0.01223136,2628.5,2628.1,0.1902]
[1645357048623,0.0026551,2628.6,2628.1,0.1902]
[1645357049214,0.01223136,2628.7,2628.0,0.79077179]
[1645357049414,0.00265505,2628.6,2628.0,0.79077179]
[1645357049814,1.11765645,2628.4,2628.0,0.79077179]
[1645357051916,0.01223136,2628.7,2628.0,0.79077179]
[1645357051917,0.00265493,2628.6,2628.0,0.79077179]
[1645357052779,0.01223136,2628.7,2628.0,0.79077179]
[1645357052986,1.01580985,2628.4,2628.0,0.78896979]
[1645357053782,0.00265501,2628.6,2628.0,0.78896979]
[1645357053979,0.01223136,2628.7,2628.0,0.78896979]
[1645357054279,0.00265493,2628.6,2628.0,0.78896979]
[1645357055179,0.01223136,2628.7,2628.0,0.78896979]
[1645357055382,0.00265501,2628.6,2628.0,0.78896979]
[1645357056422,1.09563541,2628.5,2628.0,0.78896979]
[1645357058820,0.97938143,2628.8,2628.0,0.78896979]
[1645357059024,0.00265497,2628.6,2628.0,0.78896979]
[1645357059623,0.00265497,2628.6,2628.1,1.61753244]
[1645357060072,1.03250427,2628.7,2628.1,1.61753244]
[1645357060272,0.01488641,2628.6,2628.1,1.61753244]
[1645357060472,0.01488641,2628.6,2628.1,1.61571144]
[1645357061273,0.01223136,2628.6,2628.1,1.61571144]
[1645357061578,0.01488641,2628.6,2628.1,1.61571144]
[1645357062376,0.01223136,2628.6,2628.1,1.61571144]
[1645357062575,0.01488641,2628.6,2628.1,1.61571144]
[1645357063617,0.01223136,2628.6,2628.1,1.61571144]
[1645357063816,0.01488641,2628.6,2628.1,1.61571144]
[1645357064122,0.96715007,2628.5,2628.0,0.78896979]
[1645357064315,1.13508502,2628.3,2628.0,0.78896979]
[1645357064721,0.35930989,2628.3,2628.0,0.78896979]
[1645357065317,0.96980496,2628.6,2628.0,0.78896979]
[1645357066016,0.96715007,2628.6,2628.0,0.78896979]
[1645357066215,0.96980508,2628.6,2628.0,0.78896979]
[1645357066417,1.06440849,2628.4,2628.0,0.78896979]
[1645357073422,2.03155856,2628.4,2628.0,0.78896979]
[1645357073630,5.0,2628.2,2628.0,0.78896979]
[1645357073923,4.46715007,2628.1,2628.0,0.78896979]
[1645357074127,3.5,2628.1,2628.0,0.78896979]
[1645357075268,4.9507251,2628.1,2628.0,0.78896979]
[1645357075469,4.9507251,2628.1,2626.7,0.00155696]
[1645357075470,22.5,2628.0,2626.7,0.00155696]
[1645357075675,5.0,2627.6,2626.5,0.1902]
[1645357075867,0.9656944,2627.7,2626.7,0.00155696]
[1645357075868,8.5,2627.5,2626.7,0.00155696]
[1645357076066,3.5,2627.5,2626.7,0.00155696]
[1645357076268,1.19437098,2626.8,2626.7,0.00155696]
[1645357076871,1.19437098,2626.8,2626.2,0.1902]
[1645357077178,1.19437098,2626.8,2626.6,0.00155701]
[1645357077369,3.5,2626.7,2626.6,0.00155701]
[1645357077969,1.19437098,2626.8,2625.8,4.392]
[1645357078168,3.5,2626.7,2625.8,4.392]
[1645357078366,3.5,2626.7,2626.5,0.00155707]
[1645357078623,1.19437098,2626.8,2626.5,0.00155707]
[1645357078826,3.5,2626.7,2626.5,0.00155707]
[1645357079220,3.5,2626.7,2625.9,0.1902]
[1645357079428,3.5,2626.7,2626.5,0.0015571]
[1645357080321,3.5,2626.7,2625.6,0.1902]
[1645357080523,0.99447319,2626.2,2625.7,1.61859343]
[1645357081727,3.5,2626.7,2625.7,1.61859343]
[1645357081925,3.5,2626.7,2625.8,0.00155748]
[1645357082872,3.5,2626.7,2625.7,1.61859343]
[1645357083072,3.5,2626.7,2626.1,0.00155731]
[1645357083265,0.91279081,2626.5,2626.1,0.00155731]
[1645357083666,3.5,2626.7,2626.1,0.00155731]
[1645357083868,1.8881,2626.9,2626.1,0.00155731]
[1645357083869,5.3881,2626.9,2626.1,0.00155731]
[1645357084068,3.5,2626.9,2626.0,1.61847527]
[1645357084270,1.2472,2627.0,2626.3,0.00155722]
[1645357084768,1.2472,2627.0,2626.4,1.1346579]
[1645357084973,1.03769145,2627.1,2626.4,1.1346579]
[1645357085576,1.03769145,2627.1,2626.6,0.00155704]
[1645357085767,0.13541718,2627.1,2626.6,0.00155704]
[1645357086426,0.13541718,2627.1,2626.4,2.0868679]
[1645357086626,0.13541718,2627.1,2626.7,0.00155696]
[1645357086825,1.21599108,2627.1,2626.7,0.00155696]
[1645357087632,1.21599108,2627.1,2626.4,2.0868679]
[1645357087829,1.21599108,2627.1,2626.7,0.00155696]
[1645357088729,1.21599108,2627.1,2626.4,1.25221]
[1645357089133,1.21599108,2627.1,2626.7,0.00155696]
[1645357089995,1.21599108,2627.1,2626.3,0.1902]
[1645357090395,1.21599108,2627.1,2626.7,0.00155696]
[1645357091197,1.21599108,2627.1,2626.2,0.1902]
[1645357091398,0.90244069,2626.6,2626.2,0.1902]
[1645357092701,0.90244069,2626.6,2626.3,0.00155722]
[1645357093395,0.13541718,2627.1,2626.3,0.00155722]
[1645357093616,0.13541718,2627.1,2626.2,0.1902]
[1645357093819,0.13541718,2627.1,2626.3,0.00155719]
[1645357094819,1.00610764,2627.1,2626.4,1.04602281]
[1645357095018,1.00610764,2627.1,2626.6,0.00155704]
[1645357096118,1.00610764,2627.1,2626.2,0.1902]
[1645357096318,1.00610764,2627.1,2626.7,0.00155696]
[1645357096319,0.87069046,2627.1,2626.7,0.00155696]
[1645357097375,0.00107664,2626.7,2626.3,2.21825289]
[1645357097568,0.00107664,2626.7,2626.4,0.1902]
[1645357097967,0.00107664,2626.7,2626.3,0.1902]
[1645357098668,0.00107664,2626.7,2626.4,0.00155716]
[1645357099571,0.00107664,2626.7,2626.1,0.1902]
[1645357099875,0.00107664,2626.7,2626.4,0.00155713]
[1645357100072,0.89150601,2626.6,2626.4,0.00155713]
[1645357100872,0.89150601,2626.6,2625.7,1.61849656]
[1645357101120,0.89150601,2626.6,2626.4,0.00155716]
[1645357102221,0.89150601,2626.6,2625.9,4.41798226]
[1645357102419,0.89060635,2626.6,2626.4,0.00155716]
[1645357103321,0.89060635,2626.6,2625.9,1.61839512]
[1645357103521,0.89060635,2626.6,2626.4,0.00155716]
[1645357104523,0.89060635,2626.6,2625.9,0.1902]
[1645357104763,0.89060635,2626.6,2626.4,0.00155716]
[1645357105766,0.89060635,2626.6,2625.8,2.50753968]
[1645357105965,0.89060635,2626.6,2626.4,0.00155716]
[1645357106769,0.89060635,2626.6,2625.8,1.61850802]
[1645357106969,0.89060635,2626.6,2625.6,4.2123]
[1645357107169,0.89060635,2626.6,2626.4,0.00155716]
[1645357108072,0.89060635,2626.6,2625.7,1.61852775]
[1645357108272,0.89060635,2626.6,2626.4,0.00155716]
[1645357109323,0.89060635,2626.6,2625.7,1.61852775]
[1645357109520,1.15028534,2626.1,2625.7,1.61852775]
[1645357109730,0.00107664,2626.7,2625.7,1.80892775]
[1645357110019,0.00107664,2626.7,2625.8,1.61852775]
[1645357110723,0.94186257,2626.4,2626.1,0.00155731]
[1645357111722,0.94186257,2626.4,2625.7,1.61859628]
[1645357111928,0.94186257,2626.4,2625.2,4.68356835]
[1645357111929,5.0,2626.2,2626.1,0.00155731]
[1645357112771,5.0,2626.2,2625.4,1.61880369]
[1645357113176,5.0,2626.2,2626.0,0.00155736]
[1645357113383,5.94186257,2626.4,2626.0,0.00155736]
[1645357113571,0.94186257,2626.4,2626.0,0.00155736]
[1645357114072,0.94186257,2626.4,2625.6,1.61880369]
[1645357114273,3.5,2626.3,2625.6,1.61880369]
[1645357114473,0.94186257,2626.4,2626.1,0.00155734]
[1645357115271,0.94186257,2626.4,2625.6,1.61880369]
[1645357115480,0.94186257,2626.4,2626.1,0.00155731]
[1645357115771,3.5,2626.5,2626.1,0.00155731]
[1645357116031,1.1489,2626.6,2626.1,0.00155731]
[1645357116418,1.1489,2626.6,2625.6,1.61739582]
[1645357116616,3.5,2626.5,2625.6,1.61739582]
[1645357116818,0.9494432,2626.5,2626.2,0.00155725]
[1645357117415,4.4494432,2626.5,2626.2,0.00155725]
[1645357117618,4.4494432,2626.5,2625.6,1.61739582]
[1645357117917,4.4494432,2626.5,2625.4,1.4318]
[1645357117918,4.4494432,2626.5,2626.2,0.00155725]
[1645357118117,0.9494432,2626.5,2626.2,0.00155725]
[1645357118917,0.4984,2626.3,2625.6,0.95154671]
[1645357119221,0.9494432,2626.5,2626.2,0.00155725]
[1645357119972,0.9494432,2626.5,2625.6,1.90411671]
[1645357120174,4.4494432,2626.5,2625.6,1.90411671]
[1645357120376,0.9494432,2626.5,2626.2,0.00155725]
[1645357121179,0.9494432,2626.5,2625.6,0.95257]
[1645357121578,0.9494432,2626.5,2626.2,0.00155725]
[1645357122477,4.4494432,2626.5,2625.4,2.0318]
[1645357122680,4.4494432,2626.5,2626.2,0.00155725]
[1645357122879,0.9494432,2626.5,2626.2,0.00155725]
[1645357123076,3.5,2626.4,2626.2,0.00155725]
[1645357123276,4.4494432,2626.5,2626.2,0.00155725]
[1645357123536,0.9494432,2626.5,2626.2,0.00155725]
[1645357123733,1.00623293,2626.0,2625.4,3.20529278]
[1645357123927,0.96677104,2626.7,2625.4,1.96369278]
[1645357124238,0.96677104,2626.7,2625.6,20.64150493]
[1645357124239,0.00107664,2626.7,2625.6,20.64150493]
[1645357124431,0.00107664,2626.7,2626.1,13.937]
[1645357124631,0.00107664,2626.7,2626.3,13.937]
[1645357124832,0.00107664,2626.7,2626.4,3.4772]
[1645357125030,0.00107664,2626.7,2626.4,4.39247784]
[1645357125229,0.00107664,2626.7,2626.4,1.24196434]
[1645357125630,0.00107664,2626.7,2626.4,0.24196434]
[1645357126028,0.00107664,2626.7,2626.4,2.14601434]
[1645357126235,0.00107664,2626.7,2626.4,2.09425]
[1645357126431,0.00107664,2626.7,2626.5,3.5]
[1645357126834,0.00107664,2626.7,2626.5,3.8]
[1645357127033,0.00107664,2626.7,2626.4,0.00155713]
[1645357127271,0.00107664,2626.7,2626.3,4.1]
[1645357127571,0.00107664,2626.7,2626.3,5.05231]
[1645357127772,0.00107664,2626.7,2626.5,0.0015571]
[1645357127971,1.03558138,2626.7,2626.5,0.0015571]
[1645357128470,1.03558138,2626.7,2626.3,5.05231]
[1645357128669,1.03558138,2626.7,2626.3,4.75231]
[1645357128878,1.03558138,2626.7,2626.2,0.1902]
[1645357128879,1.03558138,2626.7,2626.5,0.0015571]
[1645357129675,1.03558138,2626.7,2625.8,11.03462]
[1645357129872,1.03558138,2626.7,2625.8,9.82482]
[1645357129873,1.15930541,2626.1,2625.8,9.82482]
[1645357130272,0.00107664,2626.7,2625.8,9.82482]
[1645357130476,0.00107664,2626.7,2625.9,3.5]
[1645357131121,1.00730927,2626.6,2626.2,0.00155728]
[1645357132023,1.00730927,2626.6,2625.8,7.32]
[1645357132219,1.00730927,2626.6,2626.3,0.00155722]
[1645357133220,1.00730927,2626.6,2625.9,0.95246]
[1645357133419,1.00730927,2626.6,2626.3,0.00155719]
[1645357134421,1.00730927,2626.6,2625.9,0.95246]
[1645357134620,1.00730927,2626.6,2626.3,0.00155719]
[1645357135670,1.00730927,2626.6,2626.0,1.61852708]
[1645357135868,1.00730927,2626.6,2626.3,0.00155719]
[1645357136868,1.00730927,2626.6,2626.0,1.61852667]
[1645357137068,1.00730927,2626.6,2626.3,0.00155719]
[1645357138176,1.00730927,2626.6,2625.9,1.6185312]
[1645357138369,1.00730927,2626.6,2626.3,0.00155719]
[1645357139228,1.00730927,2626.6,2626.0,1.6185312]
[1645357139423,1.00730927,2626.6,2626.3,0.00155719]
[1645357139724,1.00730927,2626.6,2626.3,0.00026355]
[1645357139921,1.97300367,2626.6,2626.3,0.00026355]
[1645357140325,1.00730927,2626.6,2626.3,0.00026355]
[1645357140625,1.97300367,2626.6,2625.5,0.1902]
[1645357140826,0.9656944,2626.5,2625.6,1.61873717]
[1645357141022,1.02752294,2625.8,2625.7,1.61873717]
[1645357141425,1.02752294,2625.8,2625.5,1.61873717]
[1645357143482,0.9656944,2626.6,2625.4,1.61873717]
[1645357143683,1.1702,2626.5,2625.4,1.61873717]
[1645357143882,2.1358944,2626.5,2625.4,1.61873717]
[1645357144282,2.1358944,2626.5,2625.8,0.00155425]
[1645357144882,1.03338132,2625.9,2625.8,0.00155425]
[1645357145282,1.03338132,2625.9,2625.4,1.61873717]
[1645357145483,1.03338132,2625.9,2625.7,0.00155431]
[1645357146526,1.03338132,2625.9,2625.4,1.61873717]
[1645357146729,1.03338132,2625.9,2625.7,0.00155434]
[1645357147729,1.03338132,2625.9,2625.4,1.61873717]
[1645357147928,1.03338132,2625.9,2625.7,0.00155434]